bitfinex/quotes_BTCUSD_20230120
["timestamp","ask_amount","ask_price","bid_price","bid_amount"]
[1674173571969,0.07488617,21071.0,21070.0,0.45047379]
[1674173572277,0.07488617,21071.0,21070.0,0.76498879]
[1674173572538,0.07488617,21071.0,21070.0,1.71400182]
[1674173572798,0.07488617,21071.0,21070.0,0.76498879]
[1674173573330,0.07488617,21071.0,21070.0,1.71400219]
[1674173574383,0.07488617,21071.0,21070.0,1.71532236]
[1674173574642,0.07488617,21071.0,21070.0,1.71400219]
[1674173575671,0.07488617,21071.0,21070.0,1.82739674]
[1674173575940,0.07488617,21071.0,21070.0,1.71400219]
[1674173576241,0.07488617,21071.0,21070.0,2.18861019]
[1674173576478,0.07488617,21071.0,21070.0,2.18993036]
[1674173576748,0.07488617,21071.0,21070.0,1.71532236]
[1674173577262,0.07488617,21071.0,21070.0,1.82871691]
[1674173577599,0.07488617,21071.0,21070.0,2.37062247]
[1674173577793,0.07488617,21071.0,21070.0,2.37070043]
[1674173578303,0.07488617,21071.0,21070.0,2.37071127]
[1674173578529,0.07488617,21071.0,21070.0,2.37071303]
[1674173578839,0.07488617,21071.0,21070.0,2.25723876]
[1674173579085,0.07488617,21071.0,21070.0,2.84532943]
[1674173579613,0.07488617,21071.0,21070.0,2.8453327]
[1674173579882,0.07488617,21071.0,21070.0,3.43296364]
[1674173580151,0.07488617,21071.0,21070.0,3.11472664]
[1674173580399,0.36495467,21076.0,21071.0,0.08738161]
[1674173580400,0.474476,21076.0,21071.0,0.08738161]
[1674173580658,0.968467,21077.0,21073.0,0.1134406]
[1674173580921,1.249138,21077.0,21074.0,0.72985662]
[1674173581186,0.36209228,21076.0,21075.0,0.33351]
[1674173581487,0.36209228,21076.0,21072.0,1.0625366]
[1674173581716,0.55641325,21076.0,21072.0,0.82011138]
[1674173581974,0.55641325,21076.0,21074.0,0.36496721]
[1674173582237,0.43409228,21076.0,21074.0,0.36496721]
[1674173583535,0.43409228,21076.0,21072.0,0.474548]
[1674173583789,0.31585602,21075.0,21073.0,0.001]
[1674173584110,0.31585602,21075.0,21072.0,0.80852672]
[1674173584337,0.79035102,21075.0,21074.0,0.001]
[1674173584615,0.79035102,21075.0,21071.0,0.47451529]
[1674173584882,0.05,21074.0,21073.0,0.001]
[1674173585164,0.474518,21074.0,21071.0,0.47451529]
[1674173585974,0.546518,21074.0,21071.0,0.48451529]
[1674173586232,0.83549685,21074.0,21071.0,0.48451529]
[1674173586499,0.27131259,21073.0,21071.0,0.48451529]
[1674173586784,0.94017356,21073.0,21071.0,0.03738161]
[1674173587046,0.74585259,21073.0,21071.0,0.04738161]
[1674173587315,0.66886097,21073.0,21071.0,0.04738161]
[1674173587573,1.34688715,21073.0,21071.0,0.03738161]
[1674173587832,1.46323537,21073.0,21071.0,0.04738161]
[1674173588099,1.34988715,21073.0,21071.0,0.04738161]
[1674173588913,0.3529646,21072.0,21071.0,0.04738161]
[1674173589171,0.8275276,21072.0,21071.0,0.03738161]
[1674173589920,0.8275276,21072.0,21071.0,0.03838161]
[1674173589921,0.8995276,21072.0,21071.0,0.03838161]
[1674173590187,0.8995276,21072.0,21071.0,0.03738161]
[1674173590728,0.9795276,21072.0,21071.0,0.03838161]
[1674173591571,1.4540906,21072.0,21071.0,0.03838161]
[1674173593510,1.4540906,21072.0,21071.0,0.03970172]
[1674173593679,0.9795276,21072.0,21071.0,0.03970172]
[1674173593941,0.152,21072.0,21071.0,0.41464172]
[1674173594952,0.152,21072.0,21071.0,0.41332161]
[1674173594954,0.152,21072.0,21071.0,0.03838161]
[1674173595218,0.50903578,21072.0,21071.0,0.03838161]
[1674173595736,0.50903578,21072.0,21071.0,0.03338161]
[1674173597911,0.82088397,21072.0,21071.0,0.03338161]
[1674173598167,0.73991122,21072.0,21071.0,0.03338161]
[1674173598978,0.626563,21072.0,21071.0,0.03284328]
[1674173598980,0.96423009,21072.0,21071.0,0.03284328]
[1674173599252,0.88919358,21072.0,21071.0,0.03284328]
[1674173599500,1.44826379,21072.0,21071.0,0.03284328]
[1674173599772,1.49685387,21072.0,21071.0,0.03284328]
[1674173601138,1.21447422,21072.0,21071.0,0.03284328]
[1674173601717,1.21447422,21072.0,21071.0,0.03284328]
[1674173602255,1.49502192,21072.0,21071.0,0.03284328]
[1674173602515,1.3816737,21072.0,21071.0,0.03284328]
[1674173606240,0.9071107,21072.0,21071.0,0.03284328]
[1674173609166,0.9071107,21072.0,21071.0,0.03410641]
[1674173609680,0.4325477,21072.0,21071.0,0.03410641]
[1674173609683,0.4325477,21072.0,21071.0,0.03284328]
[1674173619221,0.626563,21072.0,21071.0,0.03284328]
[1674173619484,1.101126,21072.0,21071.0,0.03284328]
[1674173619750,1.71405642,21072.0,21071.0,0.03284328]
[1674173620018,1.38449656,21072.0,21071.0,0.03284328]
[1674173620281,1.79154479,21072.0,21071.0,0.03274478]
[1674173620542,1.97424203,21072.0,21071.0,0.03274478]
[1674173621530,1.89424203,21072.0,21071.0,0.03174478]
[1674173621532,2.17840535,21072.0,21071.0,0.03174478]
[1674173621803,1.89424203,21072.0,21071.0,0.03174478]
[1674173622321,2.22651749,21072.0,21071.0,0.03274478]
[1674173622588,2.14551749,21072.0,21071.0,0.03174478]
[1674173623355,2.96296283,21072.0,21071.0,0.03174478]
[1674173623608,3.17157941,21072.0,21071.0,0.03174478]
[1674173624142,3.17157941,21072.0,21071.0,7.8e-07]
[1674173624413,3.33073576,21072.0,21071.0,7.8e-07]
[1674173624675,3.77197941,21072.0,21071.0,7.8e-07]
[1674173625482,3.67097941,21072.0,21071.0,7.8e-07]
[1674173625765,3.33073576,21072.0,21071.0,7.8e-07]
[1674173626022,3.76197941,21072.0,21071.0,7.8e-07]
[1674173626588,3.42173576,21072.0,21071.0,7.8e-07]
[1674173626848,3.76197941,21072.0,21071.0,7.8e-07]
[1674173628921,3.42173576,21072.0,21071.0,7.8e-07]
[1674173629223,3.17268329,21072.0,21071.0,7.8e-07]
[1674173629486,2.80407326,21072.0,21071.0,7.8e-07]
[1674173629745,2.76984049,21072.0,21071.0,7.8e-07]
[1674173630003,2.99685669,21072.0,21071.0,7.8e-07]
[1674173630262,3.25244268,21072.0,21071.0,7.8e-07]
[1674173631328,3.57043345,21072.0,21071.0,7.8e-07]
[1674173631589,3.47943345,21072.0,21071.0,7.8e-07]
[1674173632094,3.47943345,21072.0,21071.0,7.8e-07]
[1674173632348,3.57043345,21072.0,21071.0,7.8e-07]
[1674173632611,3.47943345,21072.0,21071.0,7.8e-07]
[1674173632871,3.56193345,21072.0,21071.0,7.8e-07]
[1674173633213,3.47093345,21072.0,21071.0,7.8e-07]
[1674173633399,2.602445,21072.0,21071.0,7.8e-07]
[1674173633667,2.48892892,21072.0,21071.0,7.8e-07]
[1674173633939,1.92003767,21072.0,21071.0,7.8e-07]
[1674173634210,1.82903767,21072.0,21071.0,7.8e-07]
[1674173634490,1.91303767,21072.0,21071.0,0.00100078]
[1674173634750,1.32963767,21072.0,21071.0,7.8e-07]
[1674173635010,1.41363767,21072.0,21071.0,0.00100078]
[1674173635279,1.32963767,21072.0,21071.0,7.8e-07]
[1674173635549,1.41363767,21072.0,21071.0,7.8e-07]
[1674173636086,1.41363767,21072.0,21071.0,0.00100078]
[1674173636087,1.49763767,21072.0,21071.0,0.00100078]
[1674173636363,1.189126,21072.0,21071.0,0.00100078]
[1674173637652,0.24,21072.0,21071.0,0.4270544]
[1674173637923,0.24,21072.0,21071.0,0.00100078]
[1674173638180,0.072,21072.0,21071.0,7.8e-07]
[1674173638435,0.156,21072.0,21071.0,7.8e-07]
[1674173638710,0.38725262,21072.0,21071.0,7.8e-07]
[1674173638970,0.47025262,21072.0,21071.0,0.00100078]
[1674173639483,0.47025262,21072.0,21071.0,0.001]
[1674173644720,0.82388397,21072.0,21071.0,0.001]
[1674173645200,1.104126,21072.0,21071.0,0.001]
[1674173645201,1.21760069,21072.0,21071.0,0.001]
[1674173645461,1.26760069,21072.0,21071.0,0.001]
[1674173645721,1.70917128,21072.0,21071.0,0.001]
[1674173645985,2.67848694,21072.0,21071.0,0.001]
[1674173646275,1.98310076,21072.0,21071.0,0.00044196]
[1674173646522,1.55134893,21072.0,21071.0,0.00044196]
[1674173647061,1.29811455,21072.0,21070.0,0.01144149]
[1674173647311,0.33373498,21071.0,21070.0,0.01144149]
[1674173647608,1.39639954,21071.0,21070.0,0.01144149]
[1674173648159,1.24141099,21071.0,21070.0,0.01144149]
[1674173648433,2.59965151,21071.0,21070.0,0.01144149]
[1674173648690,3.00118376,21071.0,21070.0,0.01144149]
[1674173649179,2.69066018,21071.0,21070.0,0.01144149]
[1674173649449,2.2083171,21071.0,21070.0,0.01144149]
[1674173649714,2.1173171,21071.0,21070.0,0.01144149]
[1674173650291,2.20823885,21071.0,21070.0,0.01144149]
[1674173650538,2.03798919,21071.0,21070.0,0.01144149]
[1674173651067,1.94698919,21071.0,21070.0,0.01144149]
[1674173651328,2.03798919,21071.0,21070.0,0.01144149]
[1674173651922,2.20823885,21071.0,21070.0,0.01144149]
[1674173652452,2.0947431,21071.0,21070.0,0.01144149]
[1674173652708,2.15148199,21071.0,21070.0,0.01144149]
[1674173653181,3.04377767,21071.0,21070.0,0.01144149]
[1674173653182,2.81678912,21071.0,21070.0,0.01144149]
[1674173653969,2.72578912,21071.0,21070.0,0.01144149]
[1674173654234,2.81678912,21071.0,21070.0,0.01144149]
[1674173655013,2.54151185,21071.0,21070.0,0.01144149]
[1674173655548,2.93130208,21071.0,21070.0,0.01144149]
[1674173655818,2.87586362,21071.0,21070.0,0.01144149]
[1674173656094,2.80276312,21071.0,21070.0,0.01144149]
[1674173656359,2.32280902,21071.0,21070.0,0.01144149]
[1674173656619,2.31193976,21071.0,21070.0,0.01144149]
[1674173657103,2.31193976,21071.0,21070.0,0.01144149]
[1674173657364,2.8494007,21071.0,21070.0,0.01144149]
[1674173657629,2.7584007,21071.0,21070.0,0.01144149]
[1674173657886,2.8494007,21071.0,21070.0,0.01144149]
[1674173658402,3.0765493,21071.0,21070.0,0.01144149]
[1674173658678,2.83012146,21071.0,21070.0,0.01144149]
[1674173658979,1.81767721,21071.0,21070.0,0.01144149]
[1674173659245,1.42577142,21071.0,21070.0,0.01144149]
[1674173659521,1.51677142,21071.0,21070.0,0.01144149]
[1674173659791,1.42577142,21071.0,21070.0,0.01144149]
[1674173660059,1.4032031,21071.0,21070.0,0.01144149]
[1674173660321,1.3122031,21071.0,21070.0,0.01144149]
[1674173660584,1.4032031,21071.0,21070.0,0.01144149]
[1674173661655,1.3122031,21071.0,21070.0,0.01144149]
[1674173661928,1.4032031,21071.0,21070.0,0.01144149]
[1674173662214,1.42577142,21071.0,21070.0,0.01144149]
[1674173663261,1.59612378,21071.0,21070.0,0.01144149]
[1674173663572,1.28252236,21071.0,21070.0,0.01144149]
[1674173663843,1.50967096,21071.0,21070.0,0.01144149]
[1674173664370,1.50133966,21071.0,21070.0,0.01144149]
[1674173664625,1.81950708,21071.0,21070.0,0.01144149]
[1674173665161,1.83391329,21071.0,21070.0,0.01144149]
[1674173665162,2.21011329,21071.0,21070.0,0.01144149]
[1674173665425,2.11911329,21071.0,21070.0,0.01144149]
[1674173665678,2.21011329,21071.0,21070.0,0.01144149]
[1674173665941,2.74375344,21071.0,21070.0,0.01144149]
[1674173666222,2.32100979,21071.0,21070.0,0.00513612]
[1674173667270,2.41200979,21071.0,21070.0,0.00513612]
[1674173667554,2.32100979,21071.0,21070.0,0.00513612]
[1674173667822,2.41300979,21071.0,21070.0,0.00513612]
[1674173668609,2.75325344,21071.0,21070.0,0.00513612]
[1674173669096,2.57207979,21071.0,21070.0,0.00513612]
[1674173669353,2.41300979,21071.0,21070.0,0.00513612]
[1674173669616,2.91232344,21071.0,21070.0,0.00513612]
[1674173669877,2.57207979,21071.0,21070.0,0.00513612]
[1674173670133,2.23950616,21071.0,21070.0,0.00513612]
[1674173671196,2.08043616,21071.0,21070.0,0.00513612]
[1674173671507,2.36434754,21071.0,21070.0,0.00513612]
[1674173672306,2.5914764,21071.0,21070.0,0.00513612]
[1674173672560,2.5914764,21071.0,21070.0,0.00013612]
[1674173673017,2.4994764,21071.0,21070.0,0.00013612]
[1674173673018,2.27234754,21071.0,21070.0,0.00013612]
[1674173673283,2.59047553,21071.0,21070.0,0.00013612]
[1674173673542,2.36334754,21071.0,21070.0,0.00013612]
[1674173674051,2.59047682,21071.0,21070.0,0.00013612]
[1674173674277,2.36334754,21071.0,21070.0,0.00013612]
[1674173674545,2.59048164,21071.0,21070.0,0.00013612]
[1674173674797,2.36334754,21071.0,21070.0,0.00013612]
[1674173675576,2.07943616,21071.0,21070.0,0.00013612]
[1674173675827,2.56203835,21071.0,21070.0,0.00013612]
[1674173676353,2.47103835,21071.0,21070.0,0.00013612]
[1674173676645,2.84692969,21071.0,21070.0,0.00013612]
[1674173676879,2.3643275,21071.0,21070.0,0.00013612]
[1674173677141,2.5951964,21071.0,21070.0,0.00013612]
[1674173677415,1.99593421,21071.0,21070.0,0.10245612]
[1674173677689,1.42683573,21071.0,21070.0,0.10245612]
[1674173677995,1.33483573,21071.0,21070.0,0.00013612]
[1674173678776,1.41783573,21071.0,21070.0,0.00113612]
[1674173679033,1.33483573,21071.0,21070.0,0.00013612]
[1674173679335,1.80012384,21071.0,21070.0,0.00113612]
[1674173679596,1.53139319,21071.0,21070.0,0.00113612]
[1674173680858,1.58817675,21071.0,21070.0,0.00113612]
[1674173681128,1.81529471,21071.0,21070.0,0.00113612]
[1674173681394,1.70181521,21071.0,21070.0,0.00113612]
[1674173681656,1.81529471,21071.0,21070.0,0.00113612]
[1674173681937,1.73229471,21071.0,21070.0,0.00013612]
[1674173682207,2.07266961,21071.0,21070.0,0.00113612]
[1674173682472,1.58866286,21071.0,21070.0,0.00113612]
[1674173682741,1.78465507,21071.0,21070.0,0.00113612]
[1674173683000,2.06854641,21071.0,21070.0,0.00113612]
[1674173683818,1.84142845,21071.0,21070.0,0.00113612]
[1674173684071,1.55753711,21071.0,21070.0,0.00113612]
[1674173685143,2.66868245,21071.0,21070.0,0.00113612]
[1674173685404,2.0710639,21071.0,21070.0,0.00113612]
[1674173685943,2.72229257,21071.0,21070.0,0.00113612]
[1674173686759,2.24509088,21071.0,21070.0,0.00113612]
[1674173687019,2.46400461,21071.0,21070.0,0.00113612]
[1674173687286,2.26025484,21071.0,21070.0,0.00113612]
[1674173687842,1.97597883,21071.0,21070.0,0.00113612]
[1674173688866,2.59960175,21071.0,21070.0,0.00113612]
[1674173689139,2.43570942,21071.0,21070.0,0.00113612]
[1674173689401,1.67093371,21071.0,21070.0,0.00113612]
[1674173689671,1.84148891,21071.0,21070.0,0.00113612]
[1674173690498,1.61407668,21071.0,21070.0,0.00113612]
[1674173690755,1.84148891,21071.0,21070.0,0.00113612]
[1674173691322,1.61407668,21071.0,21070.0,0.00113612]
[1674173691578,1.84148891,21071.0,21070.0,0.00113612]
[1674173691835,1.72777177,21071.0,21070.0,0.00113612]
[1674173692096,1.61407668,21071.0,21070.0,0.00113612]
[1674173692661,2.26775804,21071.0,21070.0,0.00113612]
[1674173692936,1.84148891,21071.0,21070.0,0.00113612]
[1674173693192,1.67093371,21071.0,21070.0,0.00113612]
[1674173693710,1.84147045,21071.0,21070.0,0.00113612]
[1674173694237,1.72774584,21071.0,21070.0,0.00113612]
[1674173694756,1.72774645,21071.0,21070.0,0.00113612]
[1674173696033,1.84147045,21071.0,21070.0,0.00113612]
[1674173696553,1.33158223,21071.0,21070.0,0.00106686]
[1674173697088,1.52736121,21071.0,21070.0,0.00106686]
[1674173697339,2.15615733,21071.0,21070.0,0.00106686]
[1674173697592,1.81163265,21071.0,21069.0,0.00572535]
[1674173697896,0.55280836,21070.0,21069.0,0.00572535]
[1674173698106,1.50202436,21070.0,21069.0,0.00572535]
[1674173698613,1.33148725,21070.0,21069.0,0.00572535]
[1674173698870,1.36748725,21070.0,21069.0,0.00572535]
[1674173699163,1.37379585,21070.0,21069.0,0.00672535]
[1674173700967,1.48748725,21070.0,21069.0,0.00672535]
[1674173702022,1.37379585,21070.0,21069.0,0.00672535]
[1674173702570,0.156,21070.0,21069.0,0.41284199]
[1674173702839,0.156,21070.0,21069.0,0.00672535]
[1674173704995,0.156,21070.0,21069.0,0.48135535]
[1674173705250,0.156,21070.0,21069.0,0.00672535]
[1674173705474,0.630608,21070.0,21069.0,0.00672535]
[1674173705756,0.156,21070.0,21069.0,0.00672535]
[1674173706007,0.91634334,21070.0,21069.0,0.00672535]
[1674173706261,1.51520977,21070.0,21069.0,0.00672535]
[1674173706526,1.93864086,21070.0,21069.0,0.00672535]
[1674173706782,2.05380693,21070.0,21069.0,0.00672535]
[1674173707045,2.03547929,21070.0,21069.0,0.00672535]
[1674173707295,1.71125289,21070.0,21069.0,0.00672535]
[1674173708605,2.53812679,21070.0,21069.0,0.00302087]
[1674173708890,2.19788314,21070.0,21069.0,0.00302087]
[1674173709159,2.07211788,21070.0,21069.0,0.00302087]
[1674173709730,2.41236153,21070.0,21069.0,0.00302087]
[1674173710264,2.07211788,21070.0,21069.0,0.00302087]
[1674173710812,2.41236153,21070.0,21069.0,0.00302087]
[1674173712592,2.32836153,21070.0,21069.0,0.00202087]
[1674173713344,2.89496372,21070.0,21069.0,0.00302087]
[1674173713666,2.85811243,21070.0,21069.0,0.00090816]
[1674173713923,3.19910851,21070.0,21069.0,0.00090816]
[1674173714183,0.05,21069.0,21068.0,0.01122317]
[1674173714440,1.45642626,21069.0,21068.0,0.01122317]
[1674173714693,1.20376019,21069.0,21068.0,0.01122317]
[1674173715217,1.27576019,21069.0,21068.0,0.01122317]
[1674173715737,1.37276019,21069.0,21068.0,0.01122317]
[1674173715999,1.27576019,21069.0,21068.0,0.01122317]
[1674173716292,1.37276019,21069.0,21068.0,0.01122317]
[1674173716559,1.71365692,21069.0,21068.0,0.01122317]
[1674173716820,2.13371146,21069.0,21068.0,0.01122317]
[1674173717135,2.03671146,21069.0,21068.0,0.01122317]
[1674173717395,2.89011315,21069.0,21068.0,0.01122317]
[1674173718748,2.54921642,21069.0,21068.0,0.01122317]
[1674173719272,2.12916188,21069.0,21068.0,0.01122317]
[1674173719275,2.44150608,21069.0,21068.0,0.01122317]
[1674173719550,1.93594044,21069.0,21068.0,0.01122317]
[1674173719809,1.93594044,21069.0,21068.0,0.00792317]
[1674173720076,1.93593798,21069.0,21068.0,0.00792317]
[1674173720334,1.65196019,21069.0,21068.0,0.00792317]
[1674173720873,1.7159463,21069.0,21068.0,0.00792317]
[1674173721161,1.65196019,21069.0,21068.0,0.00792317]
[1674173723809,2.51960519,21069.0,21068.0,0.00792317]
[1674173724475,2.51960519,21069.0,21068.0,0.00239803]
[1674173727313,2.17870846,21069.0,21068.0,0.00239803]
[1674173727583,2.99059173,21069.0,21068.0,0.00239803]
[1674173728634,2.99059173,21069.0,21068.0,0.00108896]
[1674173729153,3.03876671,21069.0,21068.0,0.00108896]
[1674173733906,2.649695,21069.0,21068.0,0.00108896]
[1674173734193,2.99059173,21069.0,21068.0,0.00108896]
[1674173734468,2.649695,21069.0,21068.0,0.00108896]
[1674173735069,2.99059173,21069.0,21068.0,0.00045122]
[1674173735593,2.649695,21069.0,21068.0,0.00045122]
[1674173736123,2.99059173,21069.0,21068.0,0.00045122]
[1674173738797,2.649695,21069.0,21068.0,0.00045122]
[1674173739094,4.56738673,21069.0,21068.0,0.00045122]
[1674173739405,3.95061946,21069.0,21068.0,0.00045122]
[1674173739662,4.36461946,21069.0,21066.0,0.01122317]
[1674173740069,0.62573641,21067.0,21066.0,0.01122317]
[1674173740291,3.24764229,21067.0,21066.0,0.01122317]
[1674173740516,3.25614229,21067.0,21066.0,0.01122317]
[1674173740981,3.81794229,21067.0,21066.0,0.01122317]
[1674173741450,3.83835817,21067.0,21066.0,0.01122317]
[1674173741680,3.91004475,21067.0,21066.0,0.01122317]
[1674173741910,3.83835163,21067.0,21066.0,0.01122317]
[1674173742152,4.17894109,21067.0,21066.0,0.01122317]
[1674173742364,4.66154328,21067.0,21066.0,0.01122317]
[1674173742591,4.32095382,21067.0,21066.0,0.01122317]
[1674173743424,4.66151082,21067.0,21066.0,0.01122317]
[1674173743969,4.39260203,21067.0,21066.0,0.01122317]
[1674173744506,4.32112512,21067.0,21066.0,0.01122317]
[1674173745057,4.32112512,21067.0,21066.0,0.00464816]
[1674173745344,3.83852293,21067.0,21066.0,0.00464816]
[1674173745610,3.9102391,21067.0,21066.0,0.00464816]
[1674173745864,3.83878851,21067.0,21066.0,0.00464816]
[1674173746911,4.22202124,21067.0,21066.0,0.00464816]
[1674173747718,4.13002124,21067.0,21066.0,0.00464816]
[1674173748027,4.70462343,21067.0,21066.0,0.00464816]
[1674173748286,5.31262344,21067.0,21066.0,0.00464816]
[1674173748537,5.40462344,21067.0,21066.0,0.00464816]
[1674173748804,5.40462344,21067.0,21066.0,0.00289843]
[1674173749611,6.42623758,21067.0,21063.0,0.01170003]
[1674173749613,0.0019939,21065.0,21063.0,0.01170003]
[1674173749891,3.19829507,21064.0,21063.0,0.01170003]
[1674173750409,3.24286324,21064.0,21063.0,0.01170003]
[1674173751238,3.33486324,21064.0,21063.0,0.01170003]
[1674173751498,3.81746543,21064.0,21063.0,0.01170003]
[1674173751763,3.85346543,21064.0,21063.0,0.01170003]
[1674173752302,3.76146543,21064.0,21063.0,0.01170003]
[1674173752569,3.85346543,21064.0,21063.0,0.01170003]
[1674173752917,3.42047607,21064.0,21063.0,0.01170003]
[1674173753174,3.63868678,21064.0,21063.0,0.01170003]
[1674173753897,3.16148509,21064.0,21063.0,0.01170003]
[1674173754949,3.38876336,21064.0,21063.0,0.01170003]
[1674173755993,3.16148509,21064.0,21063.0,0.01170003]
[1674173756793,2.83675005,21064.0,21063.0,0.01170003]
[1674173757051,2.55267219,21064.0,21063.0,0.01170003]
[1674173757609,3.68883657,21064.0,21063.0,0.01170003]
[1674173759249,3.59683657,21064.0,21063.0,0.01170003]
[1674173759794,3.34784721,21064.0,21063.0,3e-08]
[1674173760088,3.66764754,21064.0,21062.0,0.01239524]
[1674173760360,1.30771606,21063.0,21062.0,0.01239524]
[1674173760616,1.91643388,21063.0,21062.0,0.01239524]
[1674173760901,2.11075485,21063.0,21061.0,0.01405516]
[1674173761160,0.00208726,21059.0,21057.0,0.01421179]
[1674173761451,0.00208726,21059.0,21054.0,0.01475884]
[1674173761452,3.91139358,21058.0,21054.0,0.01475884]
[1674173761719,0.11357951,21055.0,21054.0,0.01475884]
[1674173761985,1.62765897,21055.0,21054.0,0.01475884]
[1674173762241,1.54691751,21055.0,21054.0,0.01475884]
[1674173762505,2.1308663,21055.0,21054.0,0.01475884]
[1674173762809,2.13086556,21055.0,21054.0,0.01475884]
[1674173763070,1.82349703,21055.0,21054.0,0.01475884]
[1674173763325,2.18028685,21055.0,21054.0,0.01475884]
[1674173763597,1.896338,21055.0,21054.0,0.01475884]
[1674173764413,2.21840177,21055.0,21054.0,0.01475884]
[1674173765729,1.91840177,21055.0,21054.0,0.01475884]
[1674173766036,1.96657675,21055.0,21054.0,0.01475884]
[1674173767123,1.95807675,21055.0,21054.0,0.01482197]
[1674173767384,1.43495577,21055.0,21054.0,0.01482197]
[1674173767642,1.43495577,21055.0,21054.0,0.01475884]
[1674173768704,1.112892,21055.0,21054.0,0.01475884]
[1674173768969,1.421392,21055.0,21054.0,0.01475884]
[1674173769531,1.70257692,21055.0,21054.0,0.01475884]
[1674173771115,1.421392,21055.0,21054.0,0.01475884]
[1674173771117,1.534975,21055.0,21054.0,0.01475884]
[1674173771382,2.09579296,21055.0,21054.0,0.00911531]
[1674173771657,3.52067245,21055.0,21054.0,0.00911531]
[1674173771928,2.51523197,21055.0,21054.0,0.00911531]
[1674173772201,2.25422732,21055.0,21054.0,0.00911531]
[1674173772467,2.80906069,21055.0,21054.0,0.00911531]
[1674173772730,3.24550047,21055.0,21054.0,0.00376481]
[1674173772993,4.01123006,21055.0,21054.0,0.00376481]
[1674173773251,4.10323006,21055.0,21054.0,8.1e-07]
[1674173773562,4.20555103,21055.0,21052.0,0.05]
[1674173773826,0.568063,21053.0,21045.0,0.01554734]
[1674173774088,2.18538,21051.0,21045.0,0.01554734]
[1674173774368,1.41336562,21050.0,21045.0,0.01554734]
[1674173774632,2.85709466,21049.0,21045.0,0.01554734]
[1674173775132,0.0085,21048.0,21046.0,0.00156762]
[1674173775135,0.0085,21048.0,21045.0,0.01554734]
[1674173775404,1.425381,21047.0,21045.0,0.01554734]
[1674173775930,1.461381,21047.0,21045.0,0.01554734]
[1674173776203,1.497381,21047.0,21045.0,0.01554734]
[1674173776728,1.589381,21047.0,21045.0,0.01554734]
[1674173776982,1.497381,21047.0,21045.0,0.01554734]
[1674173777242,0.26450157,21046.0,21045.0,0.01554734]
[1674173777544,1.51479957,21046.0,21045.0,0.01554734]
[1674173778024,1.28679957,21046.0,21045.0,0.01554734]
[1674173779065,1.37879957,21046.0,21045.0,0.01554734]
[1674173780395,0.90365057,21046.0,21045.0,0.01554734]
[1674173782846,1.7382079,21046.0,21045.0,0.01554734]
[1674173783114,1.414298,21046.0,21045.0,0.01554734]
[1674173783635,1.6032421,21046.0,21045.0,0.01554734]
[1674173783897,1.472798,21046.0,21045.0,0.01554734]
[1674173784200,1.422798,21046.0,21045.0,0.01554734]
[1674173784488,1.64756005,21046.0,21045.0,0.01554734]
[1674173784747,1.78919541,21046.0,21045.0,0.01554734]
[1674173785282,1.422798,21046.0,21045.0,0.01554734]
[1674173785817,1.68895958,21046.0,21045.0,0.01554734]
[1674173786076,1.38895958,21046.0,21045.0,0.01554734]
[1674173786600,1.38045958,21046.0,21045.0,0.01554734]
[1674173787135,0.639149,21046.0,21045.0,0.01554734]
[1674173787388,0.639149,21046.0,21045.0,0.68621672]
[1674173787909,0.164,21046.0,21045.0,0.68621672]
[1674173788177,0.072,21046.0,21045.0,0.72133753]
[1674173788437,0.072,21046.0,21045.0,0.34412534]
[1674173788438,0.155,21046.0,21045.0,0.34412534]
[1674173788707,0.072,21046.0,21045.0,0.39312534]
[1674173788971,0.155,21046.0,21045.0,1.70095028]
[1674173789238,0.072,21046.0,21045.0,1.68473021]
[1674173789723,0.155,21046.0,21045.0,1.68573021]
[1674173790006,0.155,21046.0,21045.0,1.21055821]
[1674173790275,0.155,21046.0,21045.0,0.73538621]
[1674173790528,0.155,21046.0,21045.0,0.73553532]
[1674173791307,0.155,21046.0,21045.0,0.39427445]
[1674173791853,0.155,21046.0,21045.0,1.25155311]
[1674173792116,0.155,21046.0,21045.0,1.2469736]
[1674173792376,0.155,21046.0,21045.0,0.7718016]
[1674173795076,0.155,21046.0,21045.0,0.39427445]
[1674173795344,0.155,21046.0,21045.0,0.77454613]
[1674173797210,0.15490896,21046.0,21045.0,0.77454613]
[1674173799234,0.15490896,21046.0,21045.0,0.77439702]
[1674173800515,0.15490896,21046.0,21045.0,0.7745958]
[1674173803399,0.15490896,21046.0,21045.0,0.72439702]
[1674173805012,1.10520696,21046.0,21045.0,0.34412534]
[1674173805306,1.10520696,21046.0,21045.0,0.01654734]
[1674173805567,1.10520696,21046.0,21045.0,0.34556534]
[1674173805820,1.37617335,21046.0,21045.0,0.34556534]
[1674173807662,1.37617335,21046.0,21045.0,0.34411734]
[1674173812090,1.10520696,21046.0,21045.0,0.34411734]
[1674173814027,1.39854871,21046.0,21045.0,0.34411734]
[1674173816147,1.39854871,21046.0,21045.0,0.01654734]
[1674173816679,1.46725496,21046.0,21045.0,0.01654734]
[1674173816982,1.10520696,21046.0,21045.0,0.01654734]
[1674173817493,1.40520696,21046.0,21045.0,0.01654734]
[1674173818285,1.10520696,21046.0,21045.0,0.01654734]
[1674173818561,1.40444239,21046.0,21045.0,0.01654734]
[1674173818818,1.86984239,21046.0,21045.0,0.01654734]
[1674173820122,1.87060696,21046.0,21045.0,0.01654734]
[1674173821757,1.78760696,21046.0,21045.0,0.01545993]
[1674173822018,1.87860696,21046.0,21045.0,0.01545993]
[1674173822996,1.78760696,21046.0,21045.0,0.01545993]
[1674173823832,1.87860696,21046.0,21045.0,0.01545993]
[1674173824311,2.18211318,21046.0,21045.0,0.01545993]
[1674173825325,1.87860696,21046.0,21045.0,0.01545993]
[1674173825582,2.19709893,21046.0,21045.0,0.01545993]
[1674173826106,1.89709893,21046.0,21045.0,0.01545993]
[1674173829113,1.57860696,21046.0,21045.0,0.01545993]
[1674173829376,1.87860696,21046.0,21045.0,0.01545993]
[1674173829978,1.85477127,21046.0,21045.0,0.01545993]
[1674173830220,1.87860696,21046.0,21045.0,0.01545993]
[1674173830506,1.90298108,21046.0,21045.0,0.01545993]
[1674173831015,1.57860696,21046.0,21045.0,0.01545993]
[1674173831272,1.86952456,21046.0,21045.0,0.01545993]
[1674173832305,1.87860696,21046.0,21045.0,0.01545993]
[1674173833324,2.07292793,21046.0,21045.0,0.01545993]
[1674173833590,2.21812479,21046.0,21045.0,0.01545993]
[1674173834107,2.04841908,21046.0,21045.0,0.01545993]
[1674173836009,1.93528194,21046.0,21045.0,0.01545993]
[1674173836268,2.04841908,21046.0,21045.0,0.01545993]
[1674173836814,2.0002441,21046.0,21045.0,0.01545993]
[1674173837131,2.33127805,21046.0,21045.0,0.01545993]
[1674173837386,2.33153213,21046.0,21045.0,0.01545993]
[1674173837645,2.72747867,21046.0,21045.0,0.01545993]
[1674173837930,2.33147159,21046.0,21045.0,0.00942725]
[1674173838179,2.33149035,21046.0,21045.0,0.00942725]
[1674173839274,2.10519995,21046.0,21045.0,0.00942725]
[1674173839881,2.33149035,21046.0,21045.0,0.00942725]
[1674173840144,2.10519995,21046.0,21045.0,0.00942725]